fUST/lending_fUST_20250305
["ID","MTS","AMOUNT","RATE_DAILY","PERIOD"]
[355403394,1741108232522,-180.689599,0.00031446,2]
[355403396,1741108232531,-1668.11677721,0.00031483,64]
[355403474,1741108238043,-3440.30773729,0.00031483,64]
[355403475,1741108238053,-493.64227054,0.000319,6]
[355403476,1741108238063,-330.83388139,0.00032273,2]
[355403477,1741108238072,-47910.29201334,0.0003236,2]
[355403478,1741108238099,-5680.8,0.0003236,2]
[355403479,1741108238111,-2349.374365,0.0003236,2]
[355403480,1741108238154,-1987.60472276,0.0003236,2]
[355403481,1741108238164,-330.83388137,0.00032431,2]
[355403482,1741108238173,-423.05121655,0.00032573,5]
[355403483,1741108238183,-290.05584212,0.00032573,5]
[355403484,1741108238192,-500.0,0.00032573,5]
[355403485,1741108238202,-591.93,0.00032579,3]
[355403486,1741108238212,-500.0,0.00032588,2]
[355403487,1741108238221,-234.76082299,0.00032588,2]
[355403488,1741108238230,-500.0,0.00032588,2]
[355403489,1741108238239,-500.0,0.00032588,2]
[355403490,1741108238248,-500.0,0.00032588,2]
[355403491,1741108238261,-500.0,0.00032588,2]
[355403492,1741108238270,-500.0,0.00032588,2]
[355403493,1741108238280,-500.0,0.00032588,2]
[355403494,1741108238289,-500.0,0.00032588,2]
[355403495,1741108238299,-500.0,0.00032588,2]
[355403496,1741108238308,-500.0,0.00032588,2]
[355403497,1741108238318,-500.0,0.00032588,2]
[355403498,1741108238327,-500.0,0.00032588,2]
[355403499,1741108238337,-500.0,0.00032588,2]
[355403500,1741108238347,-192.47911926,0.00032588,2]
[355403501,1741108238356,-500.0,0.00032588,2]
[355403502,1741108238365,-500.0,0.00032588,2]
[355403503,1741108238374,-500.0,0.00032588,2]
[355403504,1741108238384,-500.0,0.00032588,2]
[355403505,1741108238394,-500.0,0.00032588,2]
[355403506,1741108238404,-500.0,0.00032588,2]
[355403507,1741108238413,-500.0,0.00032588,2]
[355403508,1741108238423,-500.0,0.00032588,2]
[355403509,1741108238432,-500.0,0.00032588,2]
[355403510,1741108238442,-500.0,0.00032588,2]
[355403511,1741108238452,-500.0,0.00032588,2]
[355403512,1741108238461,-500.0,0.00032588,2]
[355403513,1741108238471,-500.0,0.00032588,2]
[355403514,1741108238481,-500.0,0.00032588,2]
[355403515,1741108238491,-500.0,0.00032588,2]
[355403516,1741108238501,-191.22519644,0.00032588,2]
[355403517,1741108238512,-500.0,0.00032588,2]
[355403518,1741108238522,-500.0,0.00032588,2]
[355403519,1741108238532,-500.0,0.00032588,2]
[355403520,1741108238542,-500.0,0.00032588,2]
[355403521,1741108238552,-500.0,0.00032588,2]
[355403522,1741108238563,-500.0,0.00032588,2]
[355403523,1741108238575,-500.0,0.00032588,2]
[355403524,1741108238585,-250.0,0.00032588,2]
[355403525,1741108238594,-500.0,0.00032588,2]
[355403526,1741108238604,-500.0,0.00032588,2]
[355403527,1741108238614,-500.0,0.00032588,2]
[355403528,1741108238623,-500.0,0.00032588,2]
[355403529,1741108238633,-500.0,0.00032588,2]
[355403530,1741108238643,-500.0,0.00032588,2]
[355403531,1741108238653,-500.0,0.00032588,2]
[355403532,1741108238662,-500.0,0.00032588,2]
[355403533,1741108238672,-500.0,0.00032588,2]
[355403534,1741108238682,-500.0,0.00032588,2]
[355403535,1741108238692,-478.79317052,0.00032588,2]
[355403536,1741108238702,-500.0,0.00032588,2]
[355403537,1741108238711,-500.0,0.00032588,2]
[355403538,1741108238721,-500.0,0.00032588,2]
[355403539,1741108238731,-500.0,0.00032588,2]
[355403540,1741108238741,-500.0,0.00032588,2]
[355403541,1741108238750,-500.0,0.00032588,2]
[355403542,1741108238762,-500.0,0.00032588,2]
[355403543,1741108238772,-500.0,0.00032588,2]
[355403544,1741108238782,-500.0,0.00032588,2]
[355403545,1741108238792,-500.0,0.00032588,2]
[355403546,1741108238803,-500.0,0.00032588,2]
[355403547,1741108238813,-500.0,0.00032588,2]
[355403548,1741108238823,-500.0,0.00032588,2]
[355403549,1741108238833,-500.0,0.00032588,2]
[355403550,1741108238843,-500.0,0.00032588,2]
[355403551,1741108238852,-500.0,0.00032588,2]
[355403552,1741108238862,-500.0,0.00032588,2]
[355403553,1741108238872,-500.0,0.00032588,2]
[355403554,1741108238883,-500.0,0.00032588,2]
[355403555,1741108238894,-500.0,0.00032588,2]
[355403556,1741108238904,-500.0,0.00032588,2]
[355403557,1741108238914,-500.0,0.00032588,2]
[355403558,1741108238928,-500.0,0.00032588,2]
[355403559,1741108238939,-500.0,0.00032588,2]
[355403560,1741108238948,-500.0,0.00032588,2]
[355403561,1741108238959,-370.54331659,0.00032588,2]
[355403562,1741108238968,-500.0,0.00032588,2]
[355403563,1741108238978,-500.0,0.00032588,2]
[355403564,1741108238987,-500.0,0.00032588,2]
[355403565,1741108238998,-271.64675997,0.00032588,2]
[355403566,1741108239010,-500.0,0.00032588,2]
[355403567,1741108239020,-500.0,0.00032588,2]
[355403568,1741108239030,-500.0,0.00032588,2]
[355403569,1741108239040,-500.0,0.00032588,2]
[355403570,1741108239050,-500.0,0.00032588,2]
[355403571,1741108239070,-500.0,0.00032588,2]
[355403572,1741108239080,-500.0,0.00032588,2]
[355403573,1741108239089,-500.0,0.00032588,2]
[355403574,1741108239098,-500.0,0.00032588,2]
[355403575,1741108239108,-500.0,0.00032588,2]
[355403576,1741108239118,-500.0,0.00032588,2]
[355403577,1741108239128,-500.0,0.00032588,2]
[355403578,1741108239137,-500.0,0.00032588,2]
[355403579,1741108239146,-500.0,0.00032588,2]
[355403580,1741108239155,-500.0,0.00032588,2]
[355403581,1741108239164,-330.83388137,0.00032589,2]
[355403582,1741108239173,-49324.14612637,0.00032589,2]
[355403696,1741108243238,-1720.23222449,0.00032573,2]
[355403697,1741108243247,-99.38013551,0.00032588,2]
[355403727,1741108246099,-400.61986449,0.00032588,2]
[355403728,1741108246109,-500.0,0.00032588,2]
[355403729,1741108246119,-500.0,0.00032588,2]
[355403730,1741108246128,-500.0,0.00032588,2]
[355403731,1741108246138,-500.0,0.00032588,2]
[355403732,1741108246147,-647.879498,0.00032589,2]
[355403742,1741108363644,1168.5,0.00046915,30]
[355403744,1741108483050,2000.0,0.00046907,30]
[355403745,1741108493023,1290.0,0.00046907,30]
[355403746,1741108758370,1000.0,0.0004693,30]
[355403766,1741109134513,7500.03,0.0004694,120]
[355403772,1741109268854,1072.43171935,0.0004694,120]
[355403773,1741109283557,2586.68368259,0.0004694,30]
[355403774,1741109288031,1317.16734384,0.0004694,32]
[355403775,1741109295606,407.23058304,0.0001399,2]
[355403780,1741109297724,11167.52574749,0.000125,2]
[355403781,1741109303489,1960.88845428,0.0004694,120]
[355403782,1741109303941,900.77182064,0.0004694,120]
[355403783,1741109308659,1830.35061678,0.0004694,30]
[355403784,1741109312208,161.95922217,0.0004694,120]
[355403785,1741109312623,1863.67291298,0.0004694,120]
[355403786,1741109313319,676.9511199,0.0004694,120]
[355403787,1741109314853,240.82074905,0.0004694,120]
[355403788,1741109316498,1126.85425206,0.0004694,120]
[355403789,1741109317002,1479.82903376,0.0004694,90]
[355403790,1741109317115,931.75892693,0.0004694,120]
[355403791,1741109317486,2000.0,0.0004694,120]
[355403792,1741109318105,1079.85176115,0.0004694,120]
[355403793,1741109318302,609.60249117,9e-05,2]
[355403794,1741109318433,1908.70295372,0.0004694,30]
[355403795,1741109318709,845.96544505,0.0004694,120]
[355403796,1741109318742,934.28614373,0.0004694,120]
[355403797,1741109318772,242.02704487,0.0004694,30]
[355403798,1741109319460,12690.88846207,0.000145,2]
[355403799,1741109319595,1588.25359205,0.0004694,120]
[355403800,1741109319724,1035.57301123,0.0004694,120]
[355403801,1741109319803,2536.24067826,0.0004694,120]
[355403802,1741109320044,200.55995241,0.00015,2]
[355403803,1741109321547,990.86748242,0.0004694,120]
[355403804,1741109321853,1682.46694531,0.0004694,120]
[355403805,1741109322065,569.5855724,0.000149,2]
[355403806,1741109322182,438.88342655,0.0004694,120]
[355403807,1741109322211,700.0,0.0001,2]
[355403811,1741109322518,1728.30746467,0.0004694,120]
[355403812,1741109323327,345.33476459,0.0004694,120]
[355403813,1741109324156,8559.42807227,0.000135,2]
[355403815,1741109325022,523.99514541,0.0004694,120]
[355403816,1741109325110,200.34066761,0.0004694,120]
[355403817,1741109325291,3194.97565572,0.0004694,30]
[355403818,1741109325517,2000.0,0.0004694,60]
[355403819,1741109325969,488.48834991,0.0004694,120]
[355403820,1741109326237,2009.74376515,0.0004694,120]
[355403821,1741109378679,6354.22,0.0004694,120]
[355403822,1741109427349,519.70460708,0.0004694,30]
[355403885,1741109432802,-300.0,0.00020999,2]
[355403886,1741109432812,-745.94880017,0.00021,4]
[355403887,1741109432824,-42500.84306753,0.00021,4]
[355403888,1741109432831,-500.0,0.00022,2]
[355403889,1741109432840,-500.0,0.00022,2]
[355403890,1741109432850,-500.0,0.00022,2]
[355403891,1741109432860,-351.0,0.00022842,2]
[355403892,1741109432869,-23566.15361485,0.00025,2]
[355403893,1741109432878,-2572.6139901,0.0002525,2]
[355403894,1741109432888,-477.18752815,0.000259,4]
[355403895,1741109432898,-500.0,0.00027479,5]
[355403896,1741109432906,-296.19045839,0.00027751,2]
[355403897,1741109432915,-5202.0446999,0.00028652,2]
[355403898,1741109432925,-250.0,0.0002921,2]
[355403899,1741109432934,-1010.2290573,0.00029658,2]
[355403900,1741109432944,-10000.0,0.00029705,2]
[355403901,1741109432954,-1076.663082,0.00030161,2]
[355403902,1741109432963,-1236.2653191,0.00030161,2]
[355403903,1741109432973,-160.0,0.00030612,2]
[355403904,1741109432982,-673.39506569,0.00030882,2]
[355403905,1741109432992,-243.0,0.00031041,2]
[355403906,1741109433005,-24900.0,0.00031041,2]
[355403907,1741109433014,-2107.25772099,0.00031041,2]
[355403908,1741109433024,-347.00748564,0.00031144,5]
[355403909,1741109433034,-1845.9866971,0.00031246,2]
[355403910,1741109433043,-171.2260753,0.00031758,2]
[355403911,1741109433054,-6518.64374176,0.0003238,2]
[355403912,1741109433064,-1146.821483,0.0003247,2]
[355403913,1741109433073,-955.78478367,0.0003249,2]
[355403914,1741109433083,-754.31,0.00032563,3]
[355403915,1741109433093,-10000.0,0.00032569,2]
[355403916,1741109433103,-6222.87624048,0.0003257,5]
[355403917,1741109433113,-35840.47854527,0.0003257,5]
[355403918,1741109433123,-610.92754398,0.0003257,2]
[355403919,1741109433134,-14313.0160238,0.00032571,2]
[355403920,1741109433144,-260.59788216,0.00032573,5]
[355403921,1741109433154,-500.0,0.00032573,5]
[355403922,1741109433164,-305.69556243,0.00032573,5]
[355403923,1741109433174,-500.0,0.00032573,5]
[355403924,1741109433185,-500.0,0.00032573,5]
[355403925,1741109433195,-500.0,0.00032573,5]
[355403926,1741109433205,-500.0,0.00032573,5]
[355403927,1741109433216,-500.0,0.00032573,5]
[355403928,1741109433226,-502.8962849,0.00032573,5]
[355403929,1741109433236,-500.0,0.00032573,5]
[355403930,1741109433248,-4771.00534128,0.00032579,2]
[355403931,1741109433259,-14313.0160238,0.00032579,2]
[355403932,1741109433270,-150.0,0.00032586,2]
[355403933,1741109433281,-46765.11082851,0.00032589,2]
[355403934,1741109433294,-72673.82701065,0.00032589,2]
[355403935,1741109433308,-52589.03653647,0.00032589,2]
[355403936,1741109433319,-1812.05083311,0.0003259,2]
[355403937,1741109433335,-2958.95450817,0.0003259,2]
[355403938,1741109433347,-155.33,0.000327,31]
[355403939,1741109433358,-155.33,0.000327,31]
[355403940,1741109433368,-155.33,0.000327,31]
[355403941,1741109433379,-155.33,0.000327,31]
[355403942,1741109433389,-155.33,0.000327,31]
[355403943,1741109433399,-180.689599,0.000328,2]
[355403944,1741109433410,-9042.28073112,0.000329,30]
[355403945,1741109433424,-893.6,0.000329,30]
[355403946,1741109433436,-300.21947038,0.000329,30]
[355403961,1741109438278,-500.0,0.0003104,2]
[355403963,1741109438288,-500.0,0.0003104,2]
[355403965,1741109438298,-500.0,0.0003104,2]
[355403967,1741109438309,-500.0,0.0003104,2]
[355403969,1741109438319,-534.5466635,0.0003104,2]
[355403970,1741109438332,-500.0,0.0003104,2]
[355403971,1741109438342,-500.0,0.0003104,2]
[355403973,1741109438351,-479.60720012,0.0003104,2]
[355403986,1741109438471,-20.39279988,0.0003104,2]
[355403987,1741109438481,-534.5466635,0.0003104,2]
[355403988,1741109438491,-207.83814629,0.0003104,2]
[355403990,1741109438504,-500.0,0.0003104,2]
[355403992,1741109438514,-534.5466635,0.0003104,2]
[355403994,1741109438524,-500.0,0.0003104,2]
[355403995,1741109438534,-569.12251964,0.0003104,2]
[355403996,1741109438543,-500.0,0.0003104,2]
[355403997,1741109438554,-534.5466635,0.0003104,2]
[355403998,1741109438564,-500.0,0.0003104,2]
[355403999,1741109438574,-500.0,0.0003104,2]
[355404000,1741109438583,-534.5466635,0.0003104,2]
[355404001,1741109438593,-500.0,0.0003104,2]
[355404002,1741109438603,-534.5466635,0.0003104,2]
[355404003,1741109438613,-500.0,0.0003104,2]
[355404004,1741109438622,-534.5466635,0.0003104,2]
[355404005,1741109438632,-500.0,0.0003104,2]
[355404006,1741109438641,-534.5466635,0.0003104,2]
[355404007,1741109438651,-500.0,0.0003104,2]
[355404008,1741109438660,-500.0,0.0003104,2]
[355404009,1741109438670,-500.0,0.0003104,2]
[355404010,1741109438679,-534.5466635,0.0003104,2]
[355404011,1741109438690,-500.0,0.0003104,2]
[355404012,1741109438699,-500.0,0.0003104,2]
[355404013,1741109438709,-535.76233313,0.0003104,2]
[355404014,1741109438718,-534.5466635,0.0003104,2]
[355404015,1741109438728,-500.0,0.0003104,2]
[355404016,1741109438738,-500.0,0.0003104,2]
[355404017,1741109438751,-500.0,0.0003104,2]
[355404018,1741109438761,-500.0,0.0003104,2]
[355404019,1741109438770,-500.0,0.0003104,2]
[355404020,1741109438780,-500.0,0.0003104,2]
[355404021,1741109438790,-500.0,0.0003104,2]
[355404022,1741109438800,-500.0,0.0003104,2]
[355404023,1741109438810,-500.0,0.0003104,2]
[355404024,1741109438820,-500.0,0.0003104,2]
[355404025,1741109438830,-500.0,0.0003104,2]
[355404026,1741109438841,-500.0,0.0003104,2]
[355404027,1741109438852,-534.5466635,0.0003104,2]
[355404028,1741109438862,-500.0,0.0003104,2]
[355404029,1741109438873,-500.0,0.0003104,2]
[355404030,1741109438884,-500.0,0.0003104,2]
[355404031,1741109438894,-500.0,0.0003104,2]
[355404032,1741109438905,-500.0,0.0003104,2]
[355404033,1741109438915,-500.0,0.0003104,2]
[355404034,1741109438925,-534.5466635,0.0003104,2]
[355404035,1741109438935,-534.5466635,0.0003104,2]
[355404036,1741109438945,-534.5466635,0.0003104,2]
[355404037,1741109438955,-534.5466635,0.0003104,2]
[355404038,1741109438965,-534.5466635,0.0003104,2]
[355404039,1741109438975,-534.5466635,0.0003104,2]
[355404040,1741109438985,-2308.9697985,0.000329,30]
[355404041,1741109438995,-318.0,0.00033,2]
[355404042,1741109439009,-318.0,0.00033151,2]
[355404043,1741109439019,-150.0,0.00033956,2]
[355404044,1741109439029,-157.08,0.00034,7]
[355404045,1741109439040,-390.05,0.00034,30]
[355404046,1741109439050,-751.87,0.00034,30]
[355404047,1741109439059,-167.22,0.00034,30]
[355404048,1741109439069,-1149.63,0.00034,30]
[355404049,1741109439079,-318.0,0.00034521,2]
[355404050,1741109439089,-150.0,0.00035326,2]
[355404051,1741109439099,-955.78478363,0.00035438,2]
[355404052,1741109439109,-500.0,0.0003589,2]
[355404053,1741109439119,-320.0,0.00036247,2]
[355404054,1741109439128,-150.0,0.00036696,2]
[355404055,1741109439138,-155.33,0.000367,31]
[355404056,1741109439147,-155.33,0.000367,31]
[355404057,1741109439157,-155.33,0.000367,31]
[355404058,1741109439167,-155.33,0.000367,31]
[355404059,1741109439177,-155.33,0.000367,31]
[355404060,1741109439186,-155.33,0.000367,31]
[355404061,1741109439196,-155.33,0.000367,31]
[355404062,1741109439206,-155.33,0.000367,31]
[355404063,1741109439217,-155.33,0.000367,31]
[355404064,1741109439227,-155.33,0.000367,31]
[355404065,1741109439236,-12545.07,0.000367,30]
[355404066,1741109439246,-200.98567834,0.00038052,5]
[355404067,1741109439258,-1000.0,0.00038052,5]
[355404068,1741109439268,-516.16414683,0.00038052,5]
[355404069,1741109439277,-1000.0,0.00038052,5]
[355404070,1741109439286,-1000.0,0.00038052,5]
[355404071,1741109439296,-150.0,0.00038066,2]
[355404072,1741109439306,-5000.0,0.00038344,7]
[355404073,1741109439318,-999.0,0.00038356,120]
[355404074,1741109439327,-200.35224631,0.00038356,2]
[355404075,1741109439336,-1000.0,0.00038356,2]
[355404076,1741109439346,-955.78478363,0.00038387,2]
[355404077,1741109439358,-241.33,0.00038463,51]
[355404078,1741109439368,-1149.63,0.000385,30]
[355404079,1741109439378,-318.0,0.00038663,14]
[355404080,1741109439388,-253.998,0.00038683,2]
[355404081,1741109439398,-279.885,0.00038683,2]
[355404082,1741109439408,-390.05,0.000388,30]
[355404083,1741109439418,-751.87,0.000388,30]
[355404084,1741109439427,-167.22,0.000388,30]
[355404085,1741109439437,-999.0,0.00038904,120]
[355404086,1741109439446,-150.0,0.00039436,2]
[355404087,1741109439455,-999.0,0.00039452,120]
[355404088,1741109439465,-999.0,0.0004,120]
[355404089,1741109439474,-12545.07,0.0004,30]
[355404090,1741109439484,-156.508724,0.00040033,2]
[355404091,1741109439493,-980.68,0.00040547,120]
[355404092,1741109439507,-155.33,0.000406,31]
[355404093,1741109439516,-155.33,0.000406,31]
[355404094,1741109439526,-155.33,0.000406,31]
[355404095,1741109439536,-155.33,0.000406,31]
[355404096,1741109439547,-155.33,0.000406,31]
[355404097,1741109439556,-155.33,0.000406,31]
[355404098,1741109439568,-155.33,0.000406,31]
[355404099,1741109439577,-155.33,0.000406,31]
[355404100,1741109439587,-155.33,0.000406,31]
[355404101,1741109439598,-155.33,0.000406,31]
[355404102,1741109439607,-157.08,0.000407,7]
[355404103,1741109439617,-150.0,0.00040806,2]
[355404104,1741109439626,-500.0,0.00041073,5]
[355404105,1741109439636,-500.0,0.00041073,5]
[355404106,1741109439645,-500.0,0.00041073,5]
[355404107,1741109439656,-150.0,0.00041073,3]
[355404108,1741109439665,-500.0,0.00041073,5]
[355404109,1741109439675,-500.0,0.00041073,5]
[355404110,1741109439685,-500.0,0.00041073,5]
[355404111,1741109439695,-500.02631463,0.00041073,5]
[355404112,1741109439705,-500.0,0.00041073,5]
[355404113,1741109439715,-502.04291575,0.00041073,5]
[355404115,1741109439725,-500.0,0.00041073,5]
[355404116,1741109439736,-4771.00534128,0.00041075,3]
[355404118,1741109439746,-318.0,0.00041079,14]
[355404120,1741109439761,-23855.0267064,0.00041085,3]
[355404121,1741109439771,-150.0,0.00041095,2]
[355404122,1741109439782,-500.0,0.00041095,120]
[355404123,1741109439792,-500.0,0.00041095,120]
[355404124,1741109439802,-558.59070108,0.00041095,120]
[355404125,1741109439813,-500.0,0.00041095,120]
[355404126,1741109439823,-500.0,0.00041095,120]
[355404127,1741109439833,-500.0,0.00041095,120]
[355404129,1741109439843,-500.0,0.00041095,120]
[355404131,1741109439853,-500.0,0.00041095,120]
[355404132,1741109439863,-500.0,0.00041095,120]
[355404134,1741109439872,-500.0,0.00041095,120]
[355404135,1741109439882,-500.0,0.00041095,120]
[355404136,1741109439892,-502.79751058,0.00041095,120]
[355404137,1741109439904,-511.2011299,0.00041095,120]
[355404138,1741109439915,-208.17651742,0.00041095,120]
[355404139,1741109439925,-500.0,0.00041095,120]
[355404140,1741109439935,-500.0,0.00041095,120]
[355404141,1741109439946,-500.00000005,0.00041095,120]
[355404143,1741109439956,-150.0,0.00041095,2]
[355404145,1741109439966,-500.0,0.00041095,120]
[355404147,1741109439976,-500.0,0.00041095,120]
[355404149,1741109439986,-1000.0,0.00041095,120]
[355404151,1741109439996,-500.0,0.00041095,120]
[355404153,1741109440010,-500.0,0.00041095,120]
[355404155,1741109440020,-500.0,0.00041095,120]
[355404157,1741109440029,-500.0,0.00041095,120]
[355404159,1741109440039,-500.0,0.00041095,120]
[355404161,1741109440049,-500.0,0.00041095,120]
[355404163,1741109440059,-500.0,0.00041095,120]
[355404164,1741109440069,-500.0,0.00041095,120]
[355404165,1741109440079,-500.0,0.00041095,120]
[355404166,1741109440089,-500.0,0.00041095,120]
[355404167,1741109440098,-500.0,0.00041095,120]
[355404168,1741109440108,-439.56225908,0.00041095,120]
[355404170,1741109440118,-500.0,0.00041095,120]
[355404172,1741109440127,-500.0,0.00041095,120]
[355404174,1741109440136,-500.0,0.00041095,120]
[355404176,1741109440146,-500.0,0.00041095,120]
[355404178,1741109440156,-500.0,0.00041095,120]
[355404180,1741109440166,-500.0,0.00041095,120]
[355404182,1741109440176,-500.0,0.00041095,120]
[355404184,1741109440185,-500.0,0.00041095,120]
[355404186,1741109440194,-500.0,0.00041095,120]
[355404188,1741109440204,-500.0,0.00041095,120]
[355404190,1741109440213,-1000.0,0.00041095,20]
[355404192,1741109440223,-500.0,0.00041095,120]
[355404194,1741109440233,-500.0,0.00041095,120]
[355404196,1741109440242,-500.0,0.00041095,120]
[355404198,1741109440257,-500.0,0.00041095,120]
[355404199,1741109440266,-500.0,0.00041095,120]
[355404201,1741109440274,-500.0,0.00041095,120]
[355404203,1741109440284,-500.0,0.00041095,120]
[355404204,1741109440293,-500.0,0.00041095,120]
[355404206,1741109440304,-500.0,0.00041095,120]
[355404207,1741109440314,-500.0,0.00041095,120]
[355404208,1741109440326,-503.4438471,0.00041095,120]
[355404209,1741109440338,-500.0,0.00041095,120]
[355404210,1741109440347,-500.0,0.00041095,120]
[355404211,1741109440358,-500.0,0.00041095,120]
[355404212,1741109440368,-500.0,0.00041095,120]
[355404213,1741109440377,-500.0,0.00041095,14]
[355404214,1741109440387,-500.0,0.00041095,120]
[355404215,1741109440397,-500.0,0.00041095,120]
[355404216,1741109440410,-500.0,0.00041095,120]
[355404217,1741109440421,-565.76,0.00041095,120]
[355404218,1741109440431,-500.0,0.00041095,120]
[355404219,1741109440441,-500.0,0.00041095,120]
[355404220,1741109440450,-500.0,0.00041095,120]
[355404222,1741109440460,-500.0,0.00041095,120]
[355404224,1741109440470,-500.0,0.00041095,120]
[355404226,1741109440479,-500.0,0.00041095,120]
[355404228,1741109440488,-522.97449634,0.00041095,120]
[355404230,1741109440502,-500.0,0.00041095,120]
[355404231,1741109440512,-500.0,0.00041095,120]
[355404233,1741109440521,-485.48032567,0.00041095,120]
[355404239,1741109440666,-500.0,0.00041095,120]
[355404240,1741109440676,-500.0,0.00041095,120]
[355404241,1741109440687,-500.0,0.00041095,120]
[355404242,1741109440697,-500.0,0.00041095,120]
[355404243,1741109440708,-500.0,0.00041095,120]
[355404244,1741109440718,-500.0,0.00041095,120]
[355404245,1741109440727,-500.0,0.00041095,120]
[355404246,1741109440738,-501.95488389,0.00041095,120]
[355404247,1741109440752,-600.0,0.00041095,2]
[355404248,1741109440762,-500.0,0.00041095,120]
[355404249,1741109440771,-500.0,0.00041095,120]
[355404250,1741109440781,-500.0,0.00041095,120]
[355404251,1741109440791,-500.0,0.00041095,120]
[355404252,1741109440801,-500.0,0.00041095,120]
[355404253,1741109440811,-500.0,0.00041095,120]
[355404254,1741109440820,-500.0,0.00041095,120]
[355404255,1741109440830,-500.0,0.00041095,120]
[355404256,1741109440840,-500.0,0.00041095,120]
[355404257,1741109440849,-500.0,0.00041095,120]
[355404258,1741109440858,-500.0,0.00041095,120]
[355404259,1741109440868,-522.04425996,0.00041095,120]
[355404260,1741109440877,-500.0,0.00041095,120]
[355404261,1741109440887,-500.0,0.00041095,120]
[355404262,1741109440897,-500.0,0.00041095,120]
[355404263,1741109440906,-500.0,0.00041095,120]
[355404264,1741109440916,-500.0,0.00041095,120]
[355404265,1741109440926,-500.0,0.00041095,120]
[355404266,1741109440936,-500.0,0.00041095,120]
[355404267,1741109440945,-500.0,0.00041095,120]
[355404268,1741109440955,-500.0,0.00041095,120]
[355404269,1741109440964,-500.0,0.00041095,120]
[355404270,1741109440975,-500.0,0.00041095,120]
[355404271,1741109440984,-500.0,0.00041095,120]
[355404272,1741109440994,-500.0,0.00041095,120]
[355404273,1741109441006,-502.5,0.00041095,120]
[355404274,1741109441016,-3000.0,0.00041095,120]
[355404275,1741109441025,-500.0,0.00041095,120]
[355404276,1741109441035,-500.0,0.00041095,120]
[355404277,1741109441044,-500.0,0.00041095,120]
[355404278,1741109441054,-500.0,0.00041095,120]
[355404279,1741109441063,-500.0,0.00041095,120]
[355404280,1741109441073,-500.0,0.00041095,120]
[355404281,1741109441083,-500.0,0.00041095,120]
[355404282,1741109441092,-500.0,0.00041095,120]
[355404283,1741109441102,-500.0,0.00041095,120]
[355404284,1741109441112,-599.93081798,0.00041095,120]
[355404285,1741109441121,-500.0,0.00041095,120]
[355404286,1741109441131,-500.0,0.00041095,120]
[355404287,1741109441141,-500.0,0.00041095,120]
[355404288,1741109441151,-500.0,0.00041095,120]
[355404289,1741109441160,-233.18462087,0.00041095,120]
[355404290,1741109441169,-500.0,0.00041095,120]
[355404291,1741109441179,-500.0,0.00041095,120]
[355404292,1741109441189,-500.0,0.00041095,120]
[355404293,1741109441199,-500.0,0.00041095,120]
[355404294,1741109441209,-500.0,0.00041095,120]
[355404295,1741109441219,-500.0,0.00041095,120]
[355404296,1741109441228,-500.0,0.00041095,120]
[355404297,1741109441238,-500.0,0.00041095,120]